bitfinex-derivatives/quotes_BNBF0:USTF0_20250221
["timestamp","ask_amount","ask_price","bid_price","bid_amount"]
[1740115291056,1.79318962,653.19,651.94,3.08393802]
[1740115291460,1.79318962,653.19,651.95,2.16326755]
[1740115291661,1.79318962,653.19,651.96,2.16326755]
[1740115291860,1.79318962,653.19,651.97,2.16326755]
[1740115292060,1.79318962,653.19,651.98,2.16326755]
[1740115292254,1.79318962,653.19,651.99,2.16326755]
[1740115292457,1.79318962,653.19,652.0,2.16326755]
[1740115292654,1.79318962,653.19,652.01,2.16326755]
[1740115292956,1.79318962,653.19,652.02,2.16326755]
[1740115293158,1.79318962,653.19,652.03,2.16326755]
[1740115293357,1.79318962,653.19,652.04,2.16326755]
[1740115293559,1.79318962,653.19,652.05,2.16326755]
[1740115293759,1.79318962,653.19,652.06,2.16326755]
[1740115293961,1.79318962,653.19,652.07,2.16326755]
[1740115294156,1.487,653.19,652.08,2.16326755]
[1740115294358,1.487,653.19,652.09,2.16326755]
[1740115294560,1.487,653.19,652.1,2.16326755]
[1740115294760,1.487,653.19,652.11,2.16326755]
[1740115294961,1.487,653.19,652.12,2.16326755]
[1740115295158,1.487,653.19,652.13,2.16326755]
[1740115295363,1.487,653.19,652.14,2.16326755]
[1740115295563,1.487,653.19,652.15,2.16326755]
[1740115295763,1.487,653.19,652.16,2.16326755]
[1740115295959,1.487,653.19,652.17,2.16326755]
[1740115296160,1.487,653.19,652.18,2.16326755]
[1740115296364,1.487,653.19,652.19,2.16326755]
[1740115296666,1.487,653.19,652.2,2.16326755]
[1740115296862,1.487,653.19,652.21,2.16326755]
[1740115297061,1.487,653.19,652.22,2.16326755]
[1740115297256,1.487,653.19,652.19,3.08393802]
[1740115297864,1.487,653.19,652.2,2.15528889]
[1740115298064,1.487,653.19,652.21,2.15528889]
[1740115298267,1.487,653.19,652.22,2.15528889]
[1740115298465,1.487,653.19,652.23,2.15528889]
[1740115298662,1.487,653.19,652.24,2.15528889]
[1740115298860,1.487,653.19,652.25,2.15528889]
[1740115299058,1.487,653.19,652.26,2.15528889]
[1740115299263,1.487,653.19,652.27,2.15528889]
[1740115299459,1.487,653.19,652.22,3.08393802]
[1740115299660,1.487,653.19,652.23,2.15399169]
[1740115299860,1.487,653.19,652.24,2.15399169]
[1740115300065,1.487,653.19,652.24,3.08393802]
[1740115300771,1.487,653.19,652.25,2.15354664]
[1740115300973,1.487,653.19,652.26,2.15354664]
[1740115301174,1.487,653.19,652.24,3.08393802]
[1740115301469,1.487,653.19,652.25,2.15295625]
[1740115301673,1.487,653.19,652.24,3.08393802]
[1740115301875,1.487,653.19,652.25,2.15292384]
[1740115302073,1.487,653.19,652.26,2.15292384]
[1740115302274,1.487,653.19,652.25,3.08393802]
[1740115302475,1.487,653.19,652.26,2.15238923]
[1740115302674,1.487,653.19,652.25,3.08393802]
[1740115302974,1.487,653.19,652.26,2.15239039]
[1740115303175,1.487,653.19,652.27,2.15239039]
[1740115303475,1.487,653.19,652.26,3.08393802]
[1740115304876,1.487,653.19,652.06,1.15061681]
[1740115305076,1.487,653.19,652.07,2.15178875]
[1740115305271,1.487,653.19,652.06,1.15061681]
[1740115305470,1.487,653.19,652.07,5.21536383]
[1740115305673,1.487,653.19,652.08,2.15136529]
[1740115305875,1.487,653.19,652.07,3.063983]
[1740115307078,1.487,653.19,652.08,3.063983]
[1740115307378,1.487,653.19,652.09,2.15073468]
[1740115307581,1.487,653.19,652.1,2.15073468]
[1740115307778,1.487,653.19,652.11,2.15073468]
[1740115307976,1.487,653.19,652.08,3.063983]
[1740115308172,1.487,653.19,652.09,2.15077837]
[1740115308472,1.487,653.19,652.1,2.15077837]
[1740115308679,1.487,653.19,652.11,3.063983]
[1740115310176,1.487,653.19,652.12,3.063983]
[1740115311278,1.487,653.19,652.13,3.063983]
[1740115312778,1.487,653.19,652.09,1.15061681]
[1740115313278,1.487,653.19,652.15,1.15061681]
[1740115313478,1.487,653.19,652.16,3.06252019]
[1740115314781,1.487,653.19,652.15,1.15061681]
[1740115316582,1.487,653.19,652.16,1.15061681]
[1740115317284,1.79318962,653.19,652.16,1.15061681]
[1740115317781,1.79318962,653.19,652.17,3.0645028]
[1740115319577,1.79318962,653.19,652.18,3.0645028]
[1740115319980,1.79318962,653.19,652.21,1.15061681]
[1740115321887,1.79318962,653.19,652.22,3.06518949]
[1740115322788,1.79318962,653.19,651.87,1.14560293]
[1740115322789,1.79318962,653.19,652.23,3.06518949]
[1740115324191,1.79318962,653.19,652.24,3.06518949]
[1740115325287,1.79318962,653.19,652.27,1.15061681]
[1740115328494,1.79318962,653.19,652.25,1.15061681]
[1740115330094,0.30619431,653.18,652.25,1.15061681]
[1740115332500,0.30619431,653.18,652.09,1.15061681]
[1740115333500,1.216,653.17,652.09,1.15061681]
[1740115333698,0.30620368,653.16,652.09,1.15061681]
[1740115335193,0.30620368,653.16,651.94,1.15061681]
[1740115335798,0.30620368,653.16,651.95,3.07639225]
[1740115337401,0.30620368,653.16,651.96,3.07639225]
[1740115338397,0.30620368,653.16,651.97,3.07639225]
[1740115339494,0.30620368,653.16,651.98,3.07639225]
[1740115340601,0.30620368,653.16,651.99,3.07639225]
[1740115341898,0.30620368,653.16,651.91,1.15061681]
[1740115342302,0.30620368,653.16,651.92,3.0785202]
[1740115343998,0.30620368,653.16,651.93,2.16190947]
[1740115344201,0.30620368,653.16,651.94,2.16190947]
[1740115344405,0.30620368,653.16,651.95,2.16190947]
[1740115344604,0.30620368,653.16,651.93,3.0785202]
[1740115344805,0.30620368,653.16,651.94,2.16167607]
[1740115345004,0.30620368,653.16,651.95,2.16167607]
[1740115345201,0.30620368,653.16,651.93,3.0785202]
[1740115345406,0.30620368,653.16,651.94,2.16143439]
[1740115345707,0.30620368,653.16,651.93,3.0785202]
[1740115345906,0.30620368,653.16,651.95,3.0785202]
[1740115347607,0.30620368,653.16,651.96,3.0785202]
[1740115349204,0.30620368,653.16,651.88,1.15061681]
[1740115349406,0.30620368,653.16,651.89,2.16071209]
[1740115349707,0.30620368,653.16,651.92,1.15061681]
[1740115349905,0.30620368,653.16,651.93,2.16071209]
[1740115350102,0.30620368,653.16,651.94,2.16071209]
[1740115350405,0.30620368,653.16,651.92,1.15061681]
[1740115350708,0.30620368,653.16,651.93,2.16042318]
[1740115350908,0.30620368,653.16,651.94,2.16042318]
[1740115351108,0.30620368,653.16,651.92,1.15061681]
[1740115351308,0.30620368,653.16,651.95,3.07645235]
[1740115351509,0.30620368,653.16,651.96,2.16012679]
[1740115351710,0.30620368,653.16,651.97,2.16012679]
[1740115351907,0.30620368,653.16,651.95,3.07645235]
[1740115352510,0.30620368,653.16,651.96,3.07645235]
[1740115352810,0.30620368,653.16,651.96,4.22706916]
[1740115353109,0.30620368,653.16,651.97,2.16005524]
[1740115353308,0.30620368,653.16,651.98,2.16005524]
[1740115353504,0.30620368,653.16,651.99,2.16005524]
[1740115353702,0.30620368,653.16,651.96,4.22706916]
[1740115353908,0.30620368,653.16,651.97,2.16008427]
[1740115354109,0.30620368,653.16,651.98,2.16008427]
[1740115354408,0.30620368,653.16,651.99,5.23653662]
[1740115354608,0.30620368,653.16,652.0,2.16008427]
[1740115354806,1.467,653.15,652.01,2.16008427]
[1740115355008,0.30621775,653.13,652.02,2.16008427]
[1740115355204,0.30621775,653.13,652.03,2.16008427]
[1740115355407,0.30621775,653.13,651.99,3.07645235]
[1740115355408,0.30621775,653.13,652.04,2.16008427]
[1740115355603,0.30621775,653.13,652.05,2.16008427]
[1740115355808,0.30621775,653.13,652.06,2.16008427]
[1740115356003,0.30621775,653.13,652.07,2.16008427]
[1740115356207,0.30621775,653.13,652.08,2.16008427]
[1740115356407,0.30621775,653.13,652.09,2.16008427]
[1740115356608,0.30621775,653.13,652.1,2.16008427]
[1740115356807,0.30621775,653.13,652.11,2.16008427]
[1740115357003,0.30621775,653.13,652.12,3.07645235]
[1740115358310,0.30621775,653.13,652.04,1.15061681]
[1740115360111,0.30621775,653.13,651.83,1.15061681]
[1740115362515,0.30621775,653.13,651.8,1.15061681]
[1740115365017,0.30621775,653.13,651.22,1.37472352]
[1740115365018,0.30621775,653.13,651.77,1.15061681]
[1740115367820,0.30621775,653.13,651.11,1.37472352]
[1740115367821,0.30621775,653.13,651.75,1.15061681]
[1740115372420,0.30621775,653.13,651.77,1.15061681]
[1740115377723,0.30621775,653.13,651.83,1.15061681]
[1740115380526,0.30621775,653.13,651.12,1.37472352]
[1740115380527,0.30621775,653.13,651.87,1.15061681]
[1740115383634,0.30621775,653.13,651.85,1.15061681]
[1740115384233,0.30621775,653.13,651.86,5.25788781]
[1740115384426,0.30621775,653.13,651.86,3.0885909]
[1740115384832,0.30621775,653.13,651.87,2.1689005]
[1740115385130,0.30621775,653.13,651.86,3.0885909]
[1740115385330,0.30621775,653.13,651.87,2.16948516]
[1740115385534,0.30621775,653.13,651.88,2.16948516]
[1740115385734,0.30621775,653.13,651.89,2.16947019]
[1740115385933,0.30621775,653.13,651.88,3.0885909]
[1740115386133,0.30621775,653.13,651.89,2.16943846]
[1740115386335,0.30621775,653.13,651.9,2.16943846]
[1740115386534,0.30621775,653.13,652.06,1.15061681]
[1740115387430,0.30621775,653.13,652.07,3.09108591]
[1740115388333,0.30621775,653.13,652.08,2.1712843]
[1740115388529,0.30621775,653.13,652.09,3.09108591]
[1740115389237,0.30621775,653.13,652.14,1.15061681]
[1740115392138,0.30621775,653.13,652.15,2.17196806]
[1740115392439,0.30621775,653.13,652.16,2.17196806]
[1740115392637,0.30621775,653.13,652.15,3.09256508]
[1740115392638,0.30621775,653.13,652.17,2.17196806]
[1740115392832,0.30621775,653.13,652.18,2.17196806]
[1740115393034,0.30621775,653.13,652.19,2.17196806]
[1740115393240,0.30621775,653.13,652.2,2.17196806]
[1740115393440,0.30621775,653.13,652.21,2.17196806]
[1740115393635,0.30621775,653.13,652.22,2.17196806]
[1740115393838,0.30621775,653.13,652.23,2.17196806]
[1740115394040,0.30621775,653.13,652.24,2.17196806]
[1740115394241,0.30621775,653.13,652.25,2.17196806]
[1740115394540,0.30621775,653.13,652.21,3.09256508]
[1740115395339,0.30621775,653.13,652.22,3.09256508]
[1740115396745,0.30621775,653.13,652.23,3.09256508]
[1740115398145,0.30621775,653.13,652.24,3.09256508]
[1740115399546,0.30621775,653.13,652.02,1.15061681]
[1740115399746,0.30621775,653.13,652.03,2.17169745]
[1740115399948,0.30621775,653.13,652.04,2.17169745]
[1740115400247,0.30621775,653.13,652.05,5.26385096]
[1740115400449,0.30621775,653.13,652.06,2.17169745]
[1740115400649,0.30621775,653.13,652.07,2.17169745]
[1740115400848,0.30621775,653.13,652.08,2.17169745]
[1740115401149,0.30621775,653.13,652.09,2.17167646]
[1740115401449,0.30621775,653.13,652.1,2.17167646]
[1740115401649,0.30621775,653.13,652.05,3.09215351]
[1740115401842,0.30621775,653.13,652.06,2.17159629]
[1740115402046,0.30621775,653.13,652.07,2.17159629]
[1740115402247,0.30621775,653.13,652.08,2.17159629]
[1740115402447,0.30621775,653.13,652.09,2.17159629]
[1740115402747,0.30621775,653.13,652.1,2.17159629]
[1740115402947,0.30621775,653.13,652.11,2.17150795]
[1740115403150,0.30621775,653.13,652.07,3.09215351]
[1740115403350,0.30621775,653.13,652.08,2.17138191]
[1740115403548,0.30621775,653.13,652.09,2.17138191]
[1740115403751,0.30621775,653.13,652.07,3.09215351]
[1740115404050,0.30621775,653.13,652.08,2.17134651]
[1740115404245,0.30621775,653.13,652.09,2.17134651]
[1740115404449,0.30621775,653.13,652.09,3.09215351]
[1740115405844,0.30621775,653.13,652.1,3.09215351]
[1740115406549,1.013,653.12,652.1,3.09215351]
[1740115406848,0.30622712,653.11,652.11,3.09215351]
[1740115407448,0.30622712,653.11,652.12,2.17092681]
[1740115407644,0.30622712,653.11,652.13,2.17089931]
[1740115407950,0.30622712,653.11,652.11,3.09215351]
[1740115408150,0.30622712,653.11,652.12,2.17076871]
[1740115408351,0.30622712,653.11,652.13,2.17076871]
[1740115408551,0.30622712,653.11,652.12,3.09215351]
[1740115408755,0.30622712,653.11,652.13,2.17075902]
[1740115408952,0.30622712,653.11,652.12,3.09215351]
[1740115409153,0.30622712,653.11,652.13,2.17064704]
[1740115409350,0.30622712,653.11,652.14,2.17053014]
[1740115409546,0.30622712,653.11,652.15,2.17053014]
[1740115409748,0.30622712,653.11,652.16,2.17053014]
[1740115409947,0.30622712,653.11,652.15,3.09215351]
[1740115410147,0.30622712,653.11,652.16,2.17049146]
[1740115410447,0.30622712,653.11,652.15,3.09215351]
[1740115410448,0.30622712,653.11,652.17,2.17049146]
[1740115410648,0.30622712,653.11,652.18,2.17049146]
[1740115410850,0.30622712,653.11,652.15,3.09215351]
[1740115411046,0.30622712,653.11,652.18,3.09215351]
[1740115411350,0.30622712,653.11,652.19,2.17017113]
[1740115411550,0.30622712,653.11,652.18,3.09215351]
[1740115412552,0.30622712,653.11,652.19,3.09215351]
[1740115412951,0.30622712,653.11,652.2,2.17013129]
[1740115413150,0.30622712,653.11,652.21,2.17013129]
[1740115413351,0.30622712,653.11,652.19,3.09215351]
[1740115413552,0.30622712,653.11,652.2,2.17020082]
[1740115413847,0.30622712,653.11,652.21,2.17020082]
[1740115414048,0.30622712,653.11,652.19,3.09215351]
[1740115414356,0.30622712,653.11,652.22,3.09215351]
[1740115414656,0.30622712,653.11,652.23,2.17017378]
[1740115414852,0.30622712,653.11,652.24,2.17017378]
[1740115415051,0.30622712,653.11,652.25,2.17017378]
[1740115415252,0.30622712,653.11,652.26,2.17017378]
[1740115415451,0.30622712,653.11,652.27,2.17017378]
[1740115415653,0.30622712,653.11,652.28,2.17017378]
[1740115415852,0.30622712,653.11,652.29,2.17017378]
[1740115416053,0.30622712,653.11,652.3,2.17017378]
[1740115416255,0.30622712,653.11,652.31,2.17017378]
[1740115416451,0.30622712,653.11,652.32,2.17017378]
[1740115416650,0.30622712,653.11,652.33,2.17017378]
[1740115416851,0.30622712,653.11,652.34,2.17017378]
[1740115417046,0.30622712,653.11,652.28,3.09215351]
[1740115417047,0.30622712,653.11,652.35,2.17017378]
[1740115417253,0.30622712,653.11,652.36,2.17017378]
[1740115417450,0.30622712,653.11,652.35,3.09215351]
[1740115417648,0.30622712,653.11,652.36,2.1691116]
[1740115417852,0.30622712,653.11,652.35,3.09215351]
[1740115418048,0.30622712,653.11,652.36,2.1691093]
[1740115418248,0.30622712,653.11,652.35,3.09215351]
[1740115418449,0.30622712,653.11,652.36,5.26112377]
[1740115418652,0.30622712,653.11,652.36,3.09215351]
[1740115420054,0.30622712,653.11,652.37,3.09215351]
[1740115421153,0.30622712,653.11,652.38,3.09215351]
[1740115423050,0.30622712,653.11,652.39,3.09215351]
[1740115424455,0.30622712,653.11,652.4,3.09215351]
[1740115426157,0.30622712,653.11,652.41,3.09215351]
[1740115427154,0.30622712,653.11,652.23,1.15061681]
[1740115429361,0.30622712,653.11,652.04,1.15061681]
[1740115432264,0.30622712,653.11,652.02,1.15061681]
[1740115433859,0.30622712,653.11,652.03,3.0903404]
[1740115434163,1.074,653.1,652.03,3.0903404]
[1740115435867,1.074,653.1,652.11,1.15061681]
[1740115437265,1.074,653.1,652.12,3.0903404]
[1740115438070,1.074,653.1,652.13,1.15061681]
[1740115439364,1.074,653.1,652.14,3.0903404]
[1740115441268,1.074,653.1,651.54,1.37472352]
[1740115441269,1.074,653.1,652.15,3.0903404]
[1740115442270,1.074,653.1,652.16,2.17211612]
[1740115442466,1.074,653.1,652.17,2.17211612]
[1740115442666,1.074,653.1,652.18,2.17211612]
[1740115442866,1.074,653.1,652.19,2.17211612]
[1740115443063,1.074,653.1,652.2,2.17211612]
[1740115443269,1.074,653.1,652.21,2.17211612]
[1740115443571,1.074,653.1,652.22,2.17211612]
[1740115443768,1.074,653.1,652.23,2.17211612]
[1740115443969,1.074,653.1,652.18,3.0903404]
[1740115443970,1.074,653.1,652.24,2.17211612]
[1740115444266,1.074,653.1,652.25,2.17211612]
[1740115444469,1.074,653.1,652.26,2.17211612]
[1740115444771,1.074,653.1,652.27,2.17211612]
[1740115444971,1.074,653.1,652.28,2.17211612]
[1740115445173,1.074,653.1,652.29,2.17211612]
[1740115445366,1.074,653.1,652.3,2.17211612]
[1740115445572,1.074,653.1,652.31,5.26245652]
[1740115445768,1.074,653.1,652.32,2.17211612]
[1740115445973,1.074,653.1,652.33,2.17211612]
[1740115446173,1.074,653.1,652.34,5.26245652]
[1740115446366,1.074,653.1,652.35,2.17211612]
[1740115446567,1.074,653.1,652.36,2.17211612]
[1740115446769,1.074,653.1,652.37,2.17211612]
[1740115446971,1.074,653.1,652.38,2.17211612]
[1740115447171,1.074,653.1,652.39,2.17211612]
[1740115447372,1.074,653.1,652.4,2.17211612]
[1740115447574,1.074,653.1,652.41,2.17211612]
[1740115447772,1.074,653.1,652.42,2.17211612]
[1740115447972,1.074,653.1,652.43,2.17211612]
[1740115448172,1.074,653.1,652.44,2.17211612]
[1740115448370,1.074,653.1,652.45,2.17211612]
[1740115448567,1.074,653.1,652.46,2.17211612]
[1740115448771,1.074,653.1,652.47,2.17211612]
[1740115448966,1.074,653.1,652.48,2.17211612]
[1740115449168,1.074,653.1,652.49,2.17211612]
[1740115449373,1.074,653.1,652.5,2.17211612]
[1740115449672,1.074,653.1,652.51,2.17211612]
[1740115449873,1.074,653.1,652.52,2.17211612]
[1740115450071,1.074,653.1,652.47,3.0903404]
[1740115450270,1.074,653.1,652.48,2.17339604]
[1740115450466,1.074,653.1,652.49,2.17339604]
[1740115450673,1.074,653.1,652.5,2.17339604]
[1740115450972,1.074,653.1,652.51,2.17339604]
[1740115451172,1.074,653.1,652.52,2.17339604]
[1740115451473,1.074,653.1,652.49,3.0903404]
[1740115451674,1.074,653.1,652.5,2.17346666]
[1740115451875,1.074,653.1,652.49,3.0903404]
[1740115452174,1.074,653.1,652.5,3.0903404]
[1740115453373,0.30622712,653.11,652.5,3.0903404]
[1740115453568,0.30622712,653.11,652.51,3.0903404]
[1740115455068,0.30622712,653.11,652.52,3.0903404]
[1740115456971,0.30622712,653.11,652.53,3.0903404]
[1740115458173,0.30622712,653.11,652.32,1.15061681]
[1740115458367,0.30622712,653.11,652.33,2.1735806]
[1740115458568,0.30622712,653.11,652.35,1.15061681]
[1740115458874,0.30622712,653.11,652.36,2.1735806]
[1740115459071,0.30622712,653.11,652.37,2.1735806]
[1740115459273,0.30622712,653.11,652.38,2.1735806]
[1740115459473,0.30622712,653.11,652.39,2.1735806]
[1740115459674,0.30622712,653.11,652.35,1.15061681]
[1740115459874,0.30622712,653.11,652.4,3.09507699]
[1740115460773,1.60098144,653.1,652.4,3.09507699]
[1740115461376,1.60098144,653.1,652.41,3.09507699]
[1740115462674,1.60098144,653.1,652.42,3.09507699]
[1740115463776,1.60098144,653.1,652.43,3.09507699]
[1740115465277,1.60098144,653.1,652.44,3.09507699]
[1740115466780,1.60098144,653.1,652.39,1.15061681]
[1740115467280,1.60098144,653.1,652.4,3.09578812]
[1740115468580,1.60098144,653.1,652.41,3.09578812]
[1740115469981,1.60098144,653.1,652.42,3.09578812]
[1740115471381,1.60098144,653.1,652.43,3.09578812]
[1740115472883,1.60098144,653.1,652.44,3.09578812]
[1740115473983,1.60098144,653.1,652.45,3.09578812]
[1740115475284,1.60098144,653.1,652.34,1.15061681]
[1740115476486,1.60098144,653.1,652.35,3.09518119]
[1740115476682,1.60098144,653.1,652.35,4.245798]
[1740115477986,1.60098144,653.1,652.36,3.09518119]
[1740115479684,1.60098144,653.1,652.37,3.09518119]
[1740115481285,1.60098144,653.1,652.35,1.15061681]
[1740115484492,1.60098144,653.1,652.25,1.15061681]
[1740115485095,1.60098144,653.1,652.26,3.09470521]
[1740115486695,1.60098144,653.1,652.27,3.09470521]
[1740115488097,1.60098144,653.1,652.28,3.09470521]
[1740115489602,1.60098144,653.1,652.26,1.15061681]
[1740115490099,1.60098144,653.1,652.22,1.15061681]
[1740115492500,1.60098144,653.1,652.13,1.15061681]
[1740115495404,1.60098144,653.1,652.14,1.15061681]
[1740115498103,1.60098144,653.1,652.15,3.09261286]
[1740115499012,1.60098144,653.1,652.23,1.15061681]
[1740115499512,1.60098144,653.1,652.24,2.17128772]
[1740115499712,1.60098144,653.1,652.25,2.17128772]
[1740115499911,1.60098144,653.1,652.26,2.17128772]
[1740115500111,1.60098144,653.1,652.27,2.17128772]
[1740115500313,1.60098144,653.1,652.28,2.17128772]
[1740115500612,1.60098144,653.1,652.29,2.17128772]
[1740115500913,1.60098144,653.1,652.3,2.17128772]
[1740115501110,1.60098144,653.1,652.31,2.17128772]
[1740115501311,1.60098144,653.1,652.32,2.17128772]
[1740115501508,1.60098144,653.1,652.33,2.17128772]
[1740115501711,1.60098144,653.1,652.34,2.17128772]
[1740115501911,1.60098144,653.1,652.35,2.17128772]
[1740115502213,1.60098144,653.1,652.36,5.26390058]
[1740115502412,1.60098144,653.1,652.37,2.17128772]
[1740115502613,1.60098144,653.1,652.38,2.17128772]
[1740115502809,1.60098144,653.1,652.44,1.15061681]
[1740115503013,1.209,653.19,652.45,2.17128772]
[1740115503315,1.209,653.19,652.46,2.17128772]
[1740115503609,1.209,653.19,652.44,1.15061681]
[1740115503610,1.209,653.19,652.47,2.17128772]
[1740115503813,1.209,653.19,652.48,2.17128772]
[1740115504013,1.209,653.19,652.49,2.17128772]
[1740115504210,1.209,653.19,652.5,2.17128772]
[1740115504413,1.209,653.19,652.51,2.17128772]
[1740115504614,1.209,653.19,652.47,3.09261286]
[1740115504915,1.209,653.19,652.48,2.17060571]
[1740115505212,1.209,653.19,652.48,3.09261286]
[1740115506513,1.209,653.19,652.46,1.15061681]
[1740115507815,1.14772083,653.76,652.46,1.15061681]
[1740115508014,0.30593202,653.74,652.46,1.15061681]
[1740115508614,0.30593202,653.74,652.42,1.15061681]
[1740115510919,0.30593202,653.74,652.45,1.15061681]
[1740115514023,0.30593202,653.74,652.47,1.15061681]
[1740115516625,0.30593202,653.74,651.79,2.33893932]
[1740115516626,0.30593202,653.74,652.42,1.15061681]
[1740115517424,0.30593202,653.74,652.43,3.01056136]
[1740115518523,0.30593202,653.74,652.44,3.01056136]
[1740115520221,0.30593202,653.74,652.34,1.15061681]
[1740115520727,0.30593202,653.74,652.35,3.01146217]
[1740115521525,0.30593202,653.74,652.36,1.15061681]
[1740115524731,0.30593202,653.74,652.32,1.15061681]
[1740115527329,0.30593202,653.74,652.48,1.15061681]
[1740115530334,0.30593202,653.74,652.45,1.15061681]
[1740115535834,0.30593202,653.74,652.46,2.17322371]
[1740115536035,0.30593202,653.74,652.47,5.18765257]
[1740115536234,0.30593202,653.74,652.48,2.17322371]
[1740115536437,0.30593202,653.74,652.49,2.17322371]
[1740115536633,0.30593202,653.74,652.47,3.01442886]
[1740115536634,0.30593202,653.74,652.5,2.17322371]
[1740115536836,0.30593202,653.74,652.51,2.17322371]
[1740115537040,0.30593202,653.74,652.52,2.17322371]
[1740115537339,0.30593202,653.74,652.53,2.17322371]
[1740115537540,0.30593202,653.74,652.54,2.17322371]
[1740115537734,0.30593202,653.74,652.55,2.17322371]
[1740115537935,0.30593202,653.74,652.56,2.17322371]
[1740115538239,0.30593202,653.74,652.52,3.01442886]
[1740115538240,0.30593202,653.74,652.57,2.17322371]
[1740115538436,0.30593202,653.74,652.58,2.17322371]
[1740115538633,0.30593202,653.74,652.59,2.17322371]
[1740115538837,0.30593202,653.74,652.6,2.17322371]
[1740115539036,0.30593202,653.74,652.61,2.17322371]
[1740115539238,0.30593202,653.74,652.62,2.17322371]
[1740115539435,0.30593202,653.74,652.63,2.17322371]
[1740115539743,0.30593202,653.74,652.64,2.17322371]
[1740115539937,0.30593202,653.74,652.65,3.01442886]
[1740115541237,1.14772083,653.72,652.66,2.17311402]
[1740115541442,0.30594606,653.71,652.67,2.17311402]
[1740115541640,0.30594606,653.71,652.52,1.15061681]
[1740115541843,0.30594606,653.71,652.53,2.17260694]
[1740115542043,0.30594606,653.71,652.52,1.15061681]
[1740115542243,0.30594606,653.71,652.54,3.01363359]
[1740115543346,0.30594606,653.71,652.55,2.17225149]
[1740115543545,0.30594606,653.71,652.56,2.17225149]
[1740115543741,0.30594606,653.71,652.57,3.01363359]
[1740115544444,0.30594606,653.71,652.58,2.17230229]
[1740115544645,0.30594606,653.71,652.59,2.17230229]
[1740115544847,0.30594606,653.71,652.6,2.17230229]
[1740115545047,0.30594606,653.71,652.59,3.01363359]
[1740115545241,0.30594606,653.71,652.6,2.17183651]
[1740115545443,0.30594606,653.71,652.61,2.17154687]
[1740115545642,0.30594606,653.71,652.59,3.01363359]
[1740115545848,0.30594606,653.71,652.6,2.17152243]
[1740115546041,0.30594606,653.71,652.61,2.17152243]
[1740115546242,0.30594606,653.71,652.59,3.01363359]
[1740115546442,0.30594606,653.71,652.6,2.17167789]
[1740115546742,0.30594606,653.71,652.61,2.17167789]
[1740115546946,0.30594606,653.71,652.61,3.01363359]
[1740115548249,0.30594606,653.71,652.62,5.18460642]
[1740115548549,0.30594606,653.71,652.62,3.01363359]
[1740115548848,0.30594606,653.71,652.63,2.17034582]
[1740115549048,0.30594606,653.71,652.64,2.17034582]
[1740115549244,0.30594606,653.71,652.65,2.17034582]
[1740115549444,0.30594606,653.71,652.62,3.01363359]
[1740115549445,0.30594606,653.71,652.66,2.17034582]
[1740115549650,0.30594606,653.71,652.67,2.17034582]
[1740115549852,0.30594606,653.71,652.68,2.17034582]
[1740115550052,0.30594606,653.71,652.69,2.17034582]
[1740115550351,0.30594606,653.71,652.7,2.17034582]
[1740115550554,0.30594606,653.71,652.66,3.01363359]
[1740115550850,0.30594606,653.71,652.67,5.18329921]
[1740115551050,0.30594606,653.71,652.68,2.16966562]
[1740115551247,0.30594606,653.71,652.67,3.01363359]
[1740115551451,0.30594606,653.71,652.68,2.16946778]
[1740115551652,0.30594606,653.71,652.69,2.16946778]
[1740115551857,0.30594606,653.71,652.7,2.16946778]
[1740115552049,0.30594606,653.71,652.71,2.16946778]
[1740115552354,0.30594606,653.71,652.72,2.16946778]
[1740115552552,0.30594606,653.71,652.71,3.01363359]
[1740115552748,0.30594606,653.71,652.72,2.16936801]
[1740115552955,0.30594606,653.71,652.73,2.16909913]
[1740115553155,0.30594606,653.71,652.71,3.01363359]
[1740115553354,0.30594606,653.71,652.72,2.16906871]
[1740115553555,0.30594606,653.71,652.71,3.01363359]
[1740115553855,0.30594606,653.71,652.72,5.18236219]
[1740115554055,0.30594606,653.71,652.73,2.1687286]
[1740115554251,0.30594606,653.71,652.72,3.01363359]
[1740115554449,0.30594606,653.71,652.73,2.16860708]
[1740115554653,0.30594606,653.71,652.72,3.01363359]
[1740115554856,0.30594606,653.71,652.73,5.18222545]
[1740115555157,0.30594606,653.71,652.74,2.16859186]
[1740115555351,0.30594606,653.71,652.75,2.16859186]
[1740115555552,0.30594606,653.71,652.76,2.16859186]
[1740115555751,0.30594606,653.71,652.77,2.16859186]
[1740115555951,0.30594606,653.71,652.73,3.01363359]
[1740115555952,0.30594606,653.71,652.78,2.16859186]
[1740115556151,0.30594606,653.71,652.79,3.01363359]
[1740115557157,0.30594606,653.71,652.8,2.16859924]
[1740115557358,0.30594606,653.71,652.81,5.18223283]
[1740115557554,0.30594606,653.71,652.82,2.16859924]
[1740115557754,0.30594606,653.71,652.81,3.01363359]